[Event "Early-Titled-Tuesday-Blitz-February-20-2024"]
[Site "Chess.com"]
[Date "2024.02.20"]
[Round "6"]
[White "bazar-wokzal"]
[Black "alpope"]
[Result "1-0"]
[WhiteElo "2688"]
[BlackElo "2507"]
[TimeControl "180+1"]
[EndTime "9:07:46 PST"]
[Termination "bazar-wokzal won by resignation"]

1. e4 {[%clk 0:03:00.9]} 1... g6 {[%clk 0:02:59.2]} 2. Nc3 {[%clk 0:02:58.8]}
2... Bg7 {[%clk 0:02:58.5]} 3. h4 {[%clk 0:02:59]} 3... h6 {[%clk 0:02:56.4]} 4.
d4 {[%clk 0:02:58.3]} 4... d6 {[%clk 0:02:55.9]} 5. h5 {[%clk 0:02:58.7]} 5...
g5 {[%clk 0:02:55.3]} 6. f4 {[%clk 0:02:59.4]} 6... gxf4 {[%clk 0:02:37.3]} 7.
Bxf4 {[%clk 0:03:00.3]} 7... Nc6 {[%clk 0:02:34.2]} 8. d5 {[%clk 0:02:59.5]}
8... Ne5 {[%clk 0:02:34.1]} 9. Nf3 {[%clk 0:02:59.5]} 9... Bg4 {[%clk
0:02:22.5]} 10. Be2 {[%clk 0:02:59.3]} 10... Nd7 {[%clk 0:02:01.6]} 11. Qd2
{[%clk 0:02:56.1]} 11... c5 {[%clk 0:01:55.1]} 12. O-O-O {[%clk 0:02:37.2]}
12... Qa5 {[%clk 0:01:54.8]} 13. Kb1 {[%clk 0:02:30.3]} 13... Ngf6 {[%clk
0:01:40.8]} 14. Nh4 {[%clk 0:02:26.7]} 14... Bxe2 {[%clk 0:00:57.9]} 15. Qxe2
{[%clk 0:02:20.7]} 15... Ng8 {[%clk 0:00:45.9]} 16. Rh3 {[%clk 0:02:09.3]} 16...
Ne5 {[%clk 0:00:39.7]} 17. Nf5 {[%clk 0:02:07.6]} 17... Bf6 {[%clk 0:00:40.3]}
18. Qb5+ {[%clk 0:01:54.1]} 18... Qxb5 {[%clk 0:00:39]} 19. Nxb5 {[%clk
0:01:55]} 19... Kd7 {[%clk 0:00:38.8]} 20. a4 {[%clk 0:01:43.3]} 20... a6 {[%clk
0:00:34.2]} 21. Na3 {[%clk 0:01:38]} 21... Rb8 {[%clk 0:00:32.3]} 22. Rb3 {[%clk
0:01:26.5]} 22... Bg5 {[%clk 0:00:21.8]} 23. Bxe5 {[%clk 0:01:25.3]} 23... dxe5
{[%clk 0:00:21.5]} 24. Nc4 {[%clk 0:01:23.9]} 24... f6 {[%clk 0:00:12.4]} 25.
Nb6+ {[%clk 0:01:21]} 25... Ke8 {[%clk 0:00:12.5]} 26. d6 {[%clk 0:01:15.7]}
26... exd6 {[%clk 0:00:11.1]} 27. Nxd6+ {[%clk 0:01:11.4]} 27... Ke7 {[%clk
0:00:10.5]} 28. Nf5+ {[%clk 0:01:11.4]} 28... Ke8 {[%clk 0:00:11.1]} 29. Rd7
{[%clk 0:01:08.7]} 1-0

[Event "Early-Titled-Tuesday-Blitz-February-20-2024"]
[Site "Chess.com"]
[Date "2024.02.20"]
[Round "6"]
[White "A-Fier"]
[Black "Njal28"]
[Result "0-1"]
[WhiteElo "2818"]
[BlackElo "2993"]
[TimeControl "180+1"]
[EndTime "9:07:50 PST"]
[Termination "Njal28 won by resignation"]

1. d4 {[%clk 0:03:00.9]} 1... Nc6 {[%clk 0:03:00.9]} 2. d5 {[%clk 0:02:59.8]}
2... Ne5 {[%clk 0:03:01]} 3. e4 {[%clk 0:03:00.5]} 3... e6 {[%clk 0:02:59]} 4.
f4 {[%clk 0:03:01]} 4... Ng6 {[%clk 0:02:59.3]} 5. dxe6 {[%clk 0:03:01.5]} 5...
fxe6 {[%clk 0:02:57.5]} 6. Nf3 {[%clk 0:03:01.5]} 6... Nf6 {[%clk 0:02:54.8]} 7.
Nc3 {[%clk 0:03:00.4]} 7... Bb4 {[%clk 0:02:54.5]} 8. Bd3 {[%clk 0:02:59.9]}
8... O-O {[%clk 0:02:53.7]} 9. O-O {[%clk 0:03:00.3]} 9... d6 {[%clk 0:02:48.1]}
10. Kh1 {[%clk 0:02:55.2]} 10... Kh8 {[%clk 0:02:45.8]} 11. Bd2 {[%clk
0:02:41.7]} 11... Bd7 {[%clk 0:02:33.8]} 12. Qe1 {[%clk 0:02:39.6]} 12... e5
{[%clk 0:02:30.1]} 13. f5 {[%clk 0:02:39.6]} 13... Ne7 {[%clk 0:02:17.2]} 14.
Qh4 {[%clk 0:02:38.1]} 14... Bxc3 {[%clk 0:02:13.2]} 15. Bxc3 {[%clk 0:02:35.5]}
15... Qe8 {[%clk 0:02:13.2]} 16. Rae1 {[%clk 0:02:35.1]} 16... Qh5 {[%clk
0:02:11.9]} 17. Qg3 {[%clk 0:02:32.4]} 17... Bc6 {[%clk 0:02:09.9]} 18. Ng5
{[%clk 0:02:31]} 18... Qg4 {[%clk 0:02:05.8]} 19. Qe3 {[%clk 0:02:11]} 19...
Rae8 {[%clk 0:01:41]} 20. Ne6 {[%clk 0:02:08.5]} 20... Nxf5 {[%clk 0:01:32.3]}
21. Rxf5 {[%clk 0:01:50.3]} 21... Rxe6 {[%clk 0:01:32.6]} 22. h3 {[%clk
0:01:50.8]} 22... Qg6 {[%clk 0:01:27.1]} 23. Ref1 {[%clk 0:01:51.3]} 23... Ree8
{[%clk 0:01:22.1]} 24. Be1 {[%clk 0:01:47.6]} 24... Nd7 {[%clk 0:01:16.7]} 25.
Qe2 {[%clk 0:01:44.7]} 25... Rxf5 {[%clk 0:01:07.5]} 26. exf5 {[%clk 0:01:45.1]}
26... Qf7 {[%clk 0:01:07.8]} 27. c4 {[%clk 0:01:45.2]} 27... Nf6 {[%clk
0:01:01.6]} 28. b4 {[%clk 0:01:41.7]} 28... b6 {[%clk 0:01:01.5]} 29. Bc3 {[%clk
0:01:38.2]} 29... Nh5 {[%clk 0:00:56.1]} 30. Kh2 {[%clk 0:01:37.7]} 30... Nf4
{[%clk 0:00:54.9]} 31. Qe3 {[%clk 0:01:35.3]} 31... Nxg2 {[%clk 0:00:44.9]} 32.
Qg3 {[%clk 0:01:35.3]} 32... Nf4 {[%clk 0:00:40.9]} 33. Bd2 {[%clk 0:01:23.5]}
33... Nxd3 {[%clk 0:00:36.9]} 34. Qxd3 {[%clk 0:01:24.4]} 34... Rf8 {[%clk
0:00:33.7]} 35. Bg5 {[%clk 0:01:23.3]} 35... Qh5 {[%clk 0:00:32.7]} 36. Qg3
{[%clk 0:01:22]} 36... h6 {[%clk 0:00:29.6]} 0-1

[Event "Early-Titled-Tuesday-Blitz-February-20-2024"]
[Site "Chess.com"]
[Date "2024.02.20"]
[Round "6"]
[White "Chessbard1972"]
[Black "SirStrateg"]
[Result "0-1"]
[WhiteElo "2470"]
[BlackElo "2653"]
[TimeControl "180+1"]
[EndTime "9:07:54 PST"]
[Termination "SirStrateg won on time"]

1. e4 {[%clk 0:02:27.7]} 1... d6 {[%clk 0:02:59.8]} 2. d4 {[%clk 0:02:19.1]}
2... Nf6 {[%clk 0:03:00.3]} 3. Nc3 {[%clk 0:02:18.7]} 3... c6 {[%clk 0:03:00.9]}
4. a4 {[%clk 0:02:18.1]} 4... Nbd7 {[%clk 0:02:59.5]} 5. f4 {[%clk 0:02:17.1]}
5... e5 {[%clk 0:02:57.1]} 6. Nf3 {[%clk 0:02:16.8]} 6... exd4 {[%clk
0:02:56.2]} 7. Nxd4 {[%clk 0:02:16.7]} 7... g6 {[%clk 0:02:56.5]} 8. Bc4 {[%clk
0:02:14.2]} 8... Bg7 {[%clk 0:02:56.8]} 9. Be3 {[%clk 0:02:13.3]} 9... O-O
{[%clk 0:02:57]} 10. O-O {[%clk 0:02:10.3]} 10... Re8 {[%clk 0:02:49.5]} 11. Qf3
{[%clk 0:01:59.1]} 11... d5 {[%clk 0:02:49.9]} 12. exd5 {[%clk 0:01:56.4]} 12...
Nb6 {[%clk 0:02:50.1]} 13. Ba2 {[%clk 0:01:50.6]} 13... Nbxd5 {[%clk 0:02:48]}
14. Nxd5 {[%clk 0:01:50.6]} 14... Nxd5 {[%clk 0:02:48.1]} 15. Bf2 {[%clk
0:01:49.8]} 15... Nb4 {[%clk 0:02:38.8]} 16. Bxf7+ {[%clk 0:01:21.2]} 16... Kxf7
{[%clk 0:02:37.6]} 17. f5 {[%clk 0:01:21.6]} 17... Bxd4 {[%clk 0:02:24.8]} 18.
fxg6+ {[%clk 0:01:20.1]} 18... Kxg6 {[%clk 0:02:25.3]} 19. Qg3+ {[%clk
0:01:08.7]} 19... Qg5 {[%clk 0:02:25.6]} 20. Qd6+ {[%clk 0:00:58.4]} 20... Re6
{[%clk 0:02:19.2]} 21. Qxd4 {[%clk 0:00:54.8]} 21... Nd5 {[%clk 0:02:12]} 22.
Rae1 {[%clk 0:00:48.3]} 22... Rxe1 {[%clk 0:02:08.1]} 23. Rxe1 {[%clk
0:00:42.4]} 23... Bf5 {[%clk 0:02:06.5]} 24. c4 {[%clk 0:00:34.5]} 24... Nf6
{[%clk 0:02:06.9]} 25. Bh4 {[%clk 0:00:31.3]} 25... c5 {[%clk 0:02:01.7]} 26.
Qf2 {[%clk 0:00:17.7]} 26... Qg4 {[%clk 0:01:45.4]} 27. h3 {[%clk 0:00:15.5]}
27... Qd4 {[%clk 0:01:41.6]} 28. Re3 {[%clk 0:00:11.8]} 28... Ne4 {[%clk
0:01:37.8]} 29. Qf4 {[%clk 0:00:09.8]} 29... Re8 {[%clk 0:01:35.1]} 30. Kh2
{[%clk 0:00:08.7]} 30... Qe5 {[%clk 0:01:30.2]} 31. Rg3+ {[%clk 0:00:07.1]}
31... Nxg3 {[%clk 0:01:29.9]} 32. Qg5+ {[%clk 0:00:07.5]} 32... Kf7 {[%clk
0:01:30.4]} 33. Bxg3 {[%clk 0:00:07.6]} 33... Qf6 {[%clk 0:01:28.9]} 34. Qh5+
{[%clk 0:00:07.3]} 34... Qg6 {[%clk 0:01:27.7]} 35. Qh4 {[%clk 0:00:06.5]} 35...
b6 {[%clk 0:01:26]} 36. a5 {[%clk 0:00:05.5]} 36... Re7 {[%clk 0:01:25.8]} 37.
Qf4 {[%clk 0:00:04.6]} 37... Kg8 {[%clk 0:01:24]} 38. a6 {[%clk 0:00:01.8]}
38... Be4 {[%clk 0:01:22.8]} 0-1

[Event "Early-Titled-Tuesday-Blitz-February-20-2024"]
[Site "Chess.com"]
[Date "2024.02.20"]
[Round "6"]
[White "Saxar85"]
[Black "DeArron_Fox"]
[Result "1-0"]
[WhiteElo "2727"]
[BlackElo "2520"]
[TimeControl "180+1"]
[EndTime "9:07:56 PST"]
[Termination "Saxar85 won on time"]

1. e4 {[%clk 0:02:54.7]} 1... c5 {[%clk 0:02:59.9]} 2. Nf3 {[%clk 0:02:53.4]}
2... e6 {[%clk 0:03:00.4]} 3. Nc3 {[%clk 0:02:52.1]} 3... a6 {[%clk 0:02:59.5]}
4. g3 {[%clk 0:02:39.2]} 4... b5 {[%clk 0:02:59]} 5. Bg2 {[%clk 0:02:33.8]} 5...
Bb7 {[%clk 0:02:58.9]} 6. d4 {[%clk 0:02:12]} 6... cxd4 {[%clk 0:02:58.1]} 7.
Nxd4 {[%clk 0:02:11.8]} 7... Nf6 {[%clk 0:02:58.4]} 8. a3 {[%clk 0:02:06.3]}
8... Qc7 {[%clk 0:02:21.4]} 9. O-O {[%clk 0:02:04.1]} 9... Nc6 {[%clk
0:02:21.5]} 10. Nxc6 {[%clk 0:01:58.9]} 10... Bxc6 {[%clk 0:02:17.8]} 11. Re1
{[%clk 0:01:58.5]} 11... Bc5 {[%clk 0:01:25]} 12. e5 {[%clk 0:01:45.8]} 12...
Bxg2 {[%clk 0:00:37.5]} 13. Kxg2 {[%clk 0:01:45.2]} 13... Ng8 {[%clk 0:00:14.6]}
14. Qg4 {[%clk 0:01:36.6]} 14... g6 {[%clk 0:00:09.7]} 15. Bf4 {[%clk
0:01:35.4]} 15... Ne7 {[%clk 0:00:07.6]} 16. Ne4 {[%clk 0:01:32.8]} 16... Nd5
{[%clk 0:00:05]} 17. Bg5 {[%clk 0:01:20.9]} 17... O-O {[%clk 0:00:05.4]} 18. Qh4
{[%clk 0:01:14.8]} 18... Qc6 {[%clk 0:00:03.8]} 19. Kg1 {[%clk 0:00:55.2]} 19...
Rfc8 {[%clk 0:00:03.7]} 20. Rad1 {[%clk 0:00:47.2]} 20... Bf8 {[%clk 0:00:03.8]}
21. Rxd5 {[%clk 0:00:41.4]} 1-0

[Event "Early-Titled-Tuesday-Blitz-February-20-2024"]
[Site "Chess.com"]
[Date "2024.02.20"]
[Round "6"]
[White "Young_Catalan_Player09"]
[Black "snowlord"]
[Result "0-1"]
[WhiteElo "2563"]
[BlackElo "2882"]
[TimeControl "180+1"]
[EndTime "9:07:57 PST"]
[Termination "snowlord won by resignation"]

1. Nf3 {[%clk 0:03:00.9]} 1... b6 {[%clk 0:02:58.5]} 2. e4 {[%clk 0:02:59.1]}
2... Bb7 {[%clk 0:02:58.9]} 3. Nc3 {[%clk 0:02:59.3]} 3... e6 {[%clk 0:02:59.7]}
4. a3 {[%clk 0:02:57]} 4... Nf6 {[%clk 0:02:59.1]} 5. e5 {[%clk 0:02:55.3]} 5...
Nd5 {[%clk 0:02:56.5]} 6. Nxd5 {[%clk 0:02:52.8]} 6... Bxd5 {[%clk 0:02:57.4]}
7. d4 {[%clk 0:02:51.9]} 7... d6 {[%clk 0:02:57.7]} 8. Bd3 {[%clk 0:02:51.2]}
8... Nd7 {[%clk 0:02:57.2]} 9. O-O {[%clk 0:02:48.4]} 9... dxe5 {[%clk
0:02:56.8]} 10. dxe5 {[%clk 0:02:46.1]} 10... Be7 {[%clk 0:02:41.5]} 11. Bf4
{[%clk 0:02:43.8]} 11... O-O {[%clk 0:02:27.8]} 12. Qe2 {[%clk 0:02:36.4]} 12...
Nc5 {[%clk 0:02:23.9]} 13. Bc4 {[%clk 0:02:35.8]} 13... Bxc4 {[%clk 0:02:10]}
14. Qxc4 {[%clk 0:02:36.7]} 14... Qd5 {[%clk 0:02:08.8]} 15. Qxd5 {[%clk
0:02:33.3]} 15... exd5 {[%clk 0:02:09.7]} 16. Rfd1 {[%clk 0:02:33.5]} 16... Ne6
{[%clk 0:02:07]} 17. Be3 {[%clk 0:02:31.5]} 17... Rfd8 {[%clk 0:02:07.1]} 18.
Rd2 {[%clk 0:02:27.7]} 18... c5 {[%clk 0:02:03.6]} 19. c3 {[%clk 0:02:25.4]}
19... Rd7 {[%clk 0:02:03.6]} 20. Rad1 {[%clk 0:02:24.6]} 20... Rad8 {[%clk
0:02:04.3]} 21. g3 {[%clk 0:02:05.3]} 21... h5 {[%clk 0:02:01]} 22. h4 {[%clk
0:02:05]} 22... Kh7 {[%clk 0:02:01.1]} 23. Kg2 {[%clk 0:02:02.7]} 23... Kg6
{[%clk 0:02:01.6]} 24. b4 {[%clk 0:01:56]} 24... Kf5 {[%clk 0:02:01.3]} 25. bxc5
{[%clk 0:01:56.1]} 25... bxc5 {[%clk 0:02:01.5]} 26. Rb2 {[%clk 0:01:55.6]}
26... d4 {[%clk 0:01:57.1]} 27. cxd4 {[%clk 0:01:55.2]} 27... cxd4 {[%clk
0:01:57.8]} 28. Bc1 {[%clk 0:01:24.1]} 28... Bxa3 {[%clk 0:01:54]} 29. Rb3
{[%clk 0:01:23]} 29... Be7 {[%clk 0:01:43]} 30. Rbd3 {[%clk 0:01:18.8]} 30... a5
{[%clk 0:01:40.4]} 31. Bb2 {[%clk 0:01:19.1]} 31... a4 {[%clk 0:01:39.7]} 32.
Kf1 {[%clk 0:00:58.4]} 32... Rb8 {[%clk 0:01:25]} 33. Bxd4 {[%clk 0:00:37.3]}
33... Rbd8 {[%clk 0:01:21.8]} 34. Ke2 {[%clk 0:00:37.2]} 34... a3 {[%clk
0:01:10.2]} 35. Ke3 {[%clk 0:00:25.9]} 35... Nxd4 {[%clk 0:01:02.7]} 36. Nxd4+
{[%clk 0:00:24.9]} 36... Rxd4 {[%clk 0:01:03.1]} 37. Rxd4 {[%clk 0:00:24.9]}
37... Bc5 {[%clk 0:01:03.7]} 38. g4+ {[%clk 0:00:23.5]} 38... hxg4 {[%clk
0:01:03.4]} 0-1

[Event "Early-Titled-Tuesday-Blitz-February-20-2024"]
[Site "Chess.com"]
[Date "2024.02.20"]
[Round "6"]
[White "Christ_is_alive"]
[Black "GMT4114"]
[Result "0-1"]
[WhiteElo "2264"]
[BlackElo "2046"]
[TimeControl "180+1"]
[EndTime "9:07:57 PST"]
[Termination "GMT4114 won by checkmate"]

1. e4 {[%clk 0:03:00.9]} 1... e6 {[%clk 0:03:00.2]} 2. d4 {[%clk 0:03:00.2]}
2... d5 {[%clk 0:02:58.7]} 3. Nd2 {[%clk 0:03:00.8]} 3... h6 {[%clk 0:02:58.3]}
4. Ngf3 {[%clk 0:02:45.4]} 4... Nf6 {[%clk 0:02:56.3]} 5. Bd3 {[%clk 0:02:37.9]}
5... c5 {[%clk 0:02:55.3]} 6. e5 {[%clk 0:02:36.1]} 6... Nfd7 {[%clk 0:02:54.9]}
7. c3 {[%clk 0:02:36.5]} 7... Nc6 {[%clk 0:02:55.5]} 8. O-O {[%clk 0:02:25.8]}
8... g5 {[%clk 0:02:53.8]} 9. Bb5 {[%clk 0:01:50.6]} 9... cxd4 {[%clk
0:02:45.8]} 10. cxd4 {[%clk 0:01:47.2]} 10... g4 {[%clk 0:02:46]} 11. Bxc6
{[%clk 0:01:45.2]} 11... bxc6 {[%clk 0:02:43.2]} 12. Ne1 {[%clk 0:01:43.6]}
12... Ba6 {[%clk 0:02:40.4]} 13. Qxg4 {[%clk 0:01:42.3]} 13... Bxf1 {[%clk
0:02:37.7]} 14. Nxf1 {[%clk 0:01:43.2]} 14... c5 {[%clk 0:02:25.2]} 15. Be3
{[%clk 0:01:42.2]} 15... cxd4 {[%clk 0:02:16.4]} 16. Bxd4 {[%clk 0:01:43.1]}
16... Qg5 {[%clk 0:02:06.7]} 17. Qe2 {[%clk 0:01:42]} 17... Bg7 {[%clk
0:02:01.4]} 18. Nf3 {[%clk 0:01:37.8]} 18... Qg4 {[%clk 0:01:55]} 19. Qb5 {[%clk
0:01:29.3]} 19... Rb8 {[%clk 0:01:51.2]} 20. Qc6 {[%clk 0:01:22]} 20... Rg8
{[%clk 0:01:37.1]} 21. Ng3 {[%clk 0:01:19.8]} 21... h5 {[%clk 0:01:30.8]} 22. h3
{[%clk 0:00:59.6]} 22... Qg6 {[%clk 0:01:14.4]} 23. Rc1 {[%clk 0:00:58.2]} 23...
Bh6 {[%clk 0:01:04.7]} 24. Rc3 {[%clk 0:00:36.5]} 24... Bf4 {[%clk 0:01:04.6]}
25. Ne1 {[%clk 0:00:22.8]} 25... Qb1 {[%clk 0:00:47.8]} 26. Nxh5 {[%clk
0:00:08.9]} 26... Qxe1# {[%clk 0:00:44.9]} 0-1

[Event "Early-Titled-Tuesday-Blitz-February-20-2024"]
[Site "Chess.com"]
[Date "2024.02.20"]
[Round "6"]
[White "Kostya0705"]
[Black "Kotofeyca"]
[Result "1-0"]
[WhiteElo "2616"]
[BlackElo "2400"]
[TimeControl "180+1"]
[EndTime "9:07:59 PST"]
[Termination "Kostya0705 won by checkmate"]

1. e4 {[%clk 0:03:00.9]} 1... c5 {[%clk 0:02:58.3]} 2. Nf3 {[%clk 0:03:01.3]}
2... d6 {[%clk 0:02:58.3]} 3. d4 {[%clk 0:03:02]} 3... cxd4 {[%clk 0:02:58.7]}
4. Nxd4 {[%clk 0:03:02.9]} 4... Nf6 {[%clk 0:02:59.1]} 5. Nc3 {[%clk 0:03:03.6]}
5... a6 {[%clk 0:02:59.7]} 6. h4 {[%clk 0:03:04.1]} 6... e5 {[%clk 0:02:54]} 7.
Nb3 {[%clk 0:03:04]} 7... Be6 {[%clk 0:02:51.9]} 8. f4 {[%clk 0:03:03]} 8...
exf4 {[%clk 0:02:47.5]} 9. Bxf4 {[%clk 0:03:03.9]} 9... Nc6 {[%clk 0:02:45.3]}
10. Qd2 {[%clk 0:03:04]} 10... Be7 {[%clk 0:02:38.5]} 11. O-O-O {[%clk
0:03:04.2]} 11... Ne5 {[%clk 0:02:35.5]} 12. Kb1 {[%clk 0:03:04.2]} 12... O-O
{[%clk 0:02:28.2]} 13. Be2 {[%clk 0:03:03.8]} 13... b5 {[%clk 0:02:21.7]} 14.
Qe3 {[%clk 0:03:01.9]} 14... Qc7 {[%clk 0:02:13.9]} 15. Nd5 {[%clk 0:03:01]}
15... Nxd5 {[%clk 0:01:53.2]} 16. exd5 {[%clk 0:03:01.9]} 16... Bf5 {[%clk
0:01:53.4]} 17. Nd4 {[%clk 0:03:00.6]} 17... Bd7 {[%clk 0:01:19]} 18. h5 {[%clk
0:02:54.9]} 18... Bf6 {[%clk 0:01:10.5]} 19. g4 {[%clk 0:02:49.9]} 19... Bxg4
{[%clk 0:00:47.9]} 20. Bxg4 {[%clk 0:02:41.4]} 20... Nxg4 {[%clk 0:00:47.4]} 21.
Qg3 {[%clk 0:02:42.3]} 21... Ne5 {[%clk 0:00:33.4]} 22. Nf5 {[%clk 0:02:41.3]}
22... Kh8 {[%clk 0:00:27.2]} 23. Rdf1 {[%clk 0:02:01.5]} 23... Qd7 {[%clk
0:00:25.7]} 24. Bg5 {[%clk 0:01:46]} 24... Bxg5 {[%clk 0:00:20.6]} 25. Nxg7
{[%clk 0:01:46]} 25... f6 {[%clk 0:00:15.8]} 26. Ne6 {[%clk 0:01:44.5]} 26...
Rg8 {[%clk 0:00:15.1]} 27. Qf2 {[%clk 0:01:40.1]} 27... Rac8 {[%clk 0:00:15.1]}
28. Qf5 {[%clk 0:01:39.7]} 28... Qf7 {[%clk 0:00:12.8]} 29. Nxg5 {[%clk
0:01:34.4]} 29... Rxg5 {[%clk 0:00:11.7]} 30. Qxc8+ {[%clk 0:01:34]} 30... Rg8
{[%clk 0:00:12.4]} 31. Qe6 {[%clk 0:01:33.6]} 31... Qxe6 {[%clk 0:00:12.1]} 32.
dxe6 {[%clk 0:01:34.5]} 32... Rf8 {[%clk 0:00:08.8]} 33. Rhg1 {[%clk 0:01:30.1]}
33... Nc6 {[%clk 0:00:07]} 34. h6 {[%clk 0:01:28.8]} 34... f5 {[%clk 0:00:07.1]}
35. Rg7 {[%clk 0:01:28.6]} 35... f4 {[%clk 0:00:07.4]} 36. e7 {[%clk 0:01:18.8]}
36... Re8 {[%clk 0:00:06.6]} 37. Rxf4 {[%clk 0:01:19.2]} 37... Nxe7 {[%clk
0:00:06.8]} 38. Rxe7 {[%clk 0:01:18.7]} 38... Rxe7 {[%clk 0:00:05.6]} 39. Rf8#
{[%clk 0:01:17.8]} 1-0

[Event "Early-Titled-Tuesday-Blitz-February-20-2024"]
[Site "Chess.com"]
[Date "2024.02.20"]
[Round "6"]
[White "tsaruk_maks"]
[Black "Dinamo3"]
[Result "1-0"]
[WhiteElo "2748"]
[BlackElo "2532"]
[TimeControl "180+1"]
[EndTime "9:08:02 PST"]
[Termination "tsaruk_maks won by checkmate"]

1. e4 {[%clk 0:03:00.9]} 1... c5 {[%clk 0:02:59.7]} 2. Nf3 {[%clk 0:03:00]} 2...
Nc6 {[%clk 0:02:59.4]} 3. d4 {[%clk 0:03:00.2]} 3... cxd4 {[%clk 0:02:59.9]} 4.
Nxd4 {[%clk 0:03:01.1]} 4... g6 {[%clk 0:03:00.5]} 5. Nc3 {[%clk 0:03:01.8]}
5... Bg7 {[%clk 0:03:00.8]} 6. Be3 {[%clk 0:03:02.5]} 6... Nf6 {[%clk
0:03:01.3]} 7. f3 {[%clk 0:02:58.5]} 7... O-O {[%clk 0:03:01.3]} 8. Bc4 {[%clk
0:02:55.7]} 8... Qb6 {[%clk 0:02:59.5]} 9. Bb3 {[%clk 0:02:01.6]} 9... Nxe4
{[%clk 0:02:58.6]} 10. Nd5 {[%clk 0:01:50]} 10... Qa5+ {[%clk 0:02:58.1]} 11. c3
{[%clk 0:01:50.4]} 11... Nc5 {[%clk 0:02:57.3]} 12. Nxc6 {[%clk 0:01:43.3]}
12... dxc6 {[%clk 0:02:57.7]} 13. Nxe7+ {[%clk 0:01:43.1]} 13... Kh8 {[%clk
0:02:58.3]} 14. Nxc8 {[%clk 0:01:38.3]} 14... Raxc8 {[%clk 0:02:59.2]} 15. O-O
{[%clk 0:01:36.7]} 15... Rcd8 {[%clk 0:02:21.6]} 16. Qc2 {[%clk 0:01:36.8]}
16... a6 {[%clk 0:02:21.9]} 17. Bc4 {[%clk 0:01:29.1]} 17... Nd7 {[%clk
0:02:04.5]} 18. Rad1 {[%clk 0:01:19.1]} 18... Ne5 {[%clk 0:01:45.7]} 19. Bb3
{[%clk 0:01:19.4]} 19... Kg8 {[%clk 0:01:39]} 20. Qe4 {[%clk 0:00:57]} 20...
Rxd1 {[%clk 0:01:30.1]} 21. Rxd1 {[%clk 0:00:56.1]} 21... Rd8 {[%clk 0:01:30.4]}
22. Bd4 {[%clk 0:00:42.1]} 22... Qc7 {[%clk 0:01:14.8]} 23. Re1 {[%clk 0:00:42]}
23... Nd7 {[%clk 0:00:38.6]} 24. Bxf7+ {[%clk 0:00:10.5]} 24... Kxf7 {[%clk
0:00:38.4]} 25. Qe7+ {[%clk 0:00:10.6]} 25... Kg8 {[%clk 0:00:32.8]} 26. Qxg7#
{[%clk 0:00:11.5]} 1-0

[Event "Early-Titled-Tuesday-Blitz-February-20-2024"]
[Site "Chess.com"]
[Date "2024.02.20"]
[Round "6"]
[White "N4700000"]
[Black "simonachess"]
[Result "1-0"]
[WhiteElo "2466"]
[BlackElo "2297"]
[TimeControl "180+1"]
[EndTime "9:08:11 PST"]
[Termination "N4700000 won by checkmate"]

1. e4 {[%clk 0:03:00.9]} 1... d6 {[%clk 0:02:59.9]} 2. d4 {[%clk 0:03:00.1]}
2... Nf6 {[%clk 0:03:00.4]} 3. Nc3 {[%clk 0:03:00]} 3... c6 {[%clk 0:03:01]} 4.
f4 {[%clk 0:02:56.8]} 4... Qa5 {[%clk 0:03:00.4]} 5. Nf3 {[%clk 0:02:54.2]} 5...
Nxe4 {[%clk 0:02:58]} 6. Bd2 {[%clk 0:02:43.2]} 6... Nxd2 {[%clk 0:02:57.2]} 7.
Qxd2 {[%clk 0:02:43]} 7... Bf5 {[%clk 0:02:47.3]} 8. Bd3 {[%clk 0:02:37.6]} 8...
Bxd3 {[%clk 0:02:45.6]} 9. Qxd3 {[%clk 0:02:38.5]} 9... Nd7 {[%clk 0:02:42.8]}
10. O-O {[%clk 0:02:34.4]} 10... e6 {[%clk 0:02:42.7]} 11. Rae1 {[%clk
0:02:29.2]} 11... Be7 {[%clk 0:02:41.1]} 12. d5 {[%clk 0:01:56.2]} 12... cxd5
{[%clk 0:02:17.3]} 13. f5 {[%clk 0:01:55.8]} 13... O-O-O {[%clk 0:00:44.8]} 14.
fxe6 {[%clk 0:01:52.5]} 14... Qb6+ {[%clk 0:00:32.6]} 15. Kh1 {[%clk 0:01:50.3]}
15... fxe6 {[%clk 0:00:33.1]} 16. Nxd5 {[%clk 0:01:26.9]} 16... exd5 {[%clk
0:00:30.9]} 17. Rxe7 {[%clk 0:01:26.7]} 17... Rhf8 {[%clk 0:00:19.6]} 18. Qxd5
{[%clk 0:01:12.3]} 18... Ne5 {[%clk 0:00:18.8]} 19. Rxg7 {[%clk 0:01:01.9]}
19... h5 {[%clk 0:00:13.2]} 20. h3 {[%clk 0:00:59.7]} 20... Nc6 {[%clk
0:00:13.1]} 21. b3 {[%clk 0:00:54.1]} 21... Qe3 {[%clk 0:00:12.4]} 22. Qd3
{[%clk 0:00:52.1]} 22... Qe6 {[%clk 0:00:08.4]} 23. Re1 {[%clk 0:00:46.1]} 23...
Qf6 {[%clk 0:00:08.4]} 24. Rh7 {[%clk 0:00:44.2]} 24... h4 {[%clk 0:00:07.5]}
25. b4 {[%clk 0:00:40]} 25... Kb8 {[%clk 0:00:07.9]} 26. b5 {[%clk 0:00:39.6]}
26... Ne5 {[%clk 0:00:08.4]} 27. Qd5 {[%clk 0:00:34.6]} 27... Nxf3 {[%clk
0:00:08.1]} 28. Qxb7# {[%clk 0:00:33.8]} 1-0